bitfinex/quotes_BTCUSD_20260311
["timestamp","ask_amount","ask_price","bid_price","bid_amount"]
[1773214559646,0.00116,69694.0,69683.0,0.01774877]
[1773214560426,0.00116,69694.0,69684.0,0.07175248]
[1773214560584,0.0832104,69695.0,69684.0,0.08950125]
[1773214560783,0.00116,69694.0,69684.0,0.08950125]
[1773214562141,0.00116,69694.0,69684.0,0.07175248]
[1773214562344,0.00116,69694.0,69683.0,0.07175248]
[1773214563225,0.00022001,69688.0,69683.0,0.07175248]
[1773214565362,0.00022001,69688.0,69680.0,0.00071756]
[1773214565363,0.01842485,69687.0,69680.0,0.00071756]
[1773214565507,0.01842485,69687.0,69680.0,0.07247414]
[1773214565907,0.01958485,69687.0,69680.0,0.07247414]
[1773214567899,0.09133441,69687.0,69680.0,0.07247414]
[1773214568100,0.01844805,69686.0,69680.0,0.00071756]
[1773214569278,0.01844805,69686.0,69680.0,0.0724741]
[1773214570784,0.07175056,69686.0,69678.0,0.01558254]
[1773214570950,0.01854283,69685.0,69678.0,0.01558254]
[1773214571794,0.01854283,69685.0,69680.0,0.0002]
[1773214573611,0.07175153,69685.0,69680.0,0.0002]
[1773214573933,0.01855166,69684.0,69680.0,0.0002]
[1773214574149,0.01855166,69684.0,69676.0,0.07175866]
[1773214574455,0.01855166,69684.0,69672.0,0.0002]
[1773214574456,0.01855166,69684.0,69673.0,0.07176381]
[1773214574734,0.01896105,69682.0,69672.0,0.0002]
[1773214575612,0.01896105,69681.0,69672.0,0.0002]
[1773214576925,0.01896105,69681.0,69672.0,0.07196484]
[1773214578029,0.07175454,69682.0,69672.0,0.07196484]
[1773214578229,0.0717495,69687.0,69672.0,0.07196484]
[1773214578410,0.02013094,69686.0,69672.0,0.07196484]
[1773214578831,0.00116,69685.0,69672.0,0.07196484]
[1773214579150,0.01897094,69684.0,69672.0,0.07196484]
[1773214579952,0.0907236,69684.0,69672.0,0.07196484]
[1773214580316,0.01897434,69681.0,69672.0,0.07196484]
[1773214580714,0.01897434,69681.0,69671.0,0.07292567]
[1773214580922,0.0717566,69680.0,69671.0,0.07292567]
[1773214581119,0.01897434,69679.0,69671.0,0.07292567]
[1773214581344,0.01897434,69679.0,69671.0,0.00116]
[1773214581708,0.01897434,69677.0,69666.0,0.0002]
[1773214581910,0.01897434,69674.0,69661.0,0.07177607]
[1773214582089,0.01897434,69674.0,69659.0,0.07177724]
[1773214582316,0.01897434,69674.0,69661.0,0.07177611]
[1773214582500,0.02542769,69670.0,69659.0,0.07177724]
[1773214582652,0.02542769,69668.0,69658.0,0.0002]
[1773214583064,0.07176999,69667.0,69658.0,0.0002]
[1773214583272,0.07292827,69669.0,69658.0,0.0002]
[1773214583710,0.07176827,69669.0,69658.0,0.0002]
[1773214584242,0.07176827,69669.0,69650.0,0.12146343]
[1773214584243,0.07176827,69669.0,69620.0,1e-08]
[1773214584244,0.13564738,69634.0,69620.0,1e-08]
[1773214584445,0.13564738,69634.0,69600.0,0.57238382]
[1773214584446,6.73271661,69668.0,69601.0,0.0002316]
[1773214584447,0.02543866,69618.0,69601.0,0.0002316]
[1773214584580,0.04944696,69611.0,69602.0,0.00116]
[1773214584780,0.04944696,69611.0,69601.0,0.47404]
[1773214584781,0.04944696,69611.0,69603.0,0.00116]
[1773214585112,0.02543866,69608.0,69604.0,0.35194996]
[1773214585314,0.02543866,69608.0,69598.0,1e-08]
[1773214586044,0.02472092,69608.0,69603.0,0.001]
[1773214586441,0.02472092,69608.0,69598.0,1e-08]
[1773214586683,0.07298979,69610.0,69582.0,0.02967396]
[1773214586684,0.04944696,69610.0,69599.0,0.00116]
[1773214586893,0.00116,69615.0,69601.0,0.03794017]
[1773214587046,0.07181947,69619.0,69602.0,0.00116]
[1773214587445,0.04045955,69611.0,69602.0,0.00116]
[1773214587830,0.001,69610.0,69602.0,0.00116]
[1773214588258,0.07181947,69619.0,69603.0,0.00116]
[1773214588459,0.00116,69624.0,69601.0,0.03422285]
[1773214588460,0.04429985,69629.0,69604.0,0.00116]
[1773214588673,0.07204373,69625.0,69604.0,0.00116]
[1773214589216,0.00023,69625.0,69604.0,0.07299441]
[1773214589419,0.001,69619.0,69604.0,0.07299441]
[1773214589623,0.00023,69625.0,69604.0,0.07299441]
[1773214590215,0.07204369,69625.0,69604.0,0.07299441]
[1773214590621,0.07204369,69625.0,69604.0,0.07399441]
[1773214590818,0.07204369,69625.0,69604.0,0.07299441]
[1773214591919,0.0013911,69633.0,69604.0,0.07299441]
[1773214591921,0.04313769,69645.0,69610.0,0.14867006]
[1773214592235,0.04313769,69645.0,69605.0,0.00116]
[1773214592440,0.04313769,69643.0,69605.0,0.00116]
[1773214592615,0.04313769,69643.0,69610.0,0.14867006]
[1773214593277,0.04313769,69643.0,69605.0,0.00116]
[1773214593453,0.04313769,69641.0,69606.0,0.07183288]
[1773214593852,0.04313769,69641.0,69610.0,0.14967006]
[1773214594297,0.04313769,69641.0,69610.0,0.14867006]
[1773214595168,0.04265769,69641.0,69610.0,0.14867006]
[1773214595547,0.00023,69650.0,69620.0,0.14867006]
[1773214595753,0.00023,69650.0,69621.0,0.00116]
[1773214596175,0.07201792,69650.0,69621.0,0.00116]
[1773214596653,0.0717906,69647.0,69621.0,0.00116]
[1773214596818,0.04289093,69646.0,69621.0,0.00116]
[1773214597417,0.04289093,69646.0,69622.0,0.07181637]
[1773214597849,0.04311094,69646.0,69622.0,0.07181637]
[1773214598432,0.11490286,69646.0,69622.0,0.07181637]
[1773214598840,0.11490286,69646.0,69622.0,0.07281637]
[1773214599413,0.11490286,69646.0,69622.0,0.07381637]
[1773214599723,0.11490286,69646.0,69622.0,0.07281637]
[1773214599921,0.07201193,69646.0,69622.0,0.07381637]
[1773214600107,0.11509861,69646.0,69622.0,0.07381637]
[1773214600313,0.07201193,69646.0,69622.0,0.07281637]
[1773214600510,0.04308668,69645.0,69622.0,0.07281637]
[1773214600731,0.04308668,69645.0,69622.0,0.07381637]
[1773214600934,0.00022001,69646.0,69622.0,0.07381637]
[1773214601596,0.00022001,69646.0,69622.0,0.07281637]
[1773214601816,0.00022001,69646.0,69622.0,0.07381637]
[1773214602243,0.00022001,69646.0,69622.0,0.07281637]
[1773214602955,0.00022001,69646.0,69622.0,0.07381637]
[1773214603135,0.00022001,69646.0,69622.0,0.07281637]
[1773214603970,0.04989349,69646.0,69622.0,0.07381637]
[1773214604387,0.04134454,69639.0,69623.0,0.07297534]
[1773214604758,0.04134454,69639.0,69624.0,0.00116]
[1773214604970,0.04062662,69639.0,69625.0,0.00116]
[1773214606337,0.04062662,69639.0,69609.0,0.07182956]
[1773214606338,0.04099076,69637.0,69609.0,0.07182956]
[1773214606549,0.04099076,69629.0,69610.0,0.0720286]
[1773214607042,0.04099076,69629.0,69611.0,0.00116]
[1773214607381,0.11288855,69626.0,69612.0,0.00116]
[1773214607700,0.02612833,69638.0,69613.0,0.01611952]
[1773214608285,0.09792924,69637.0,69615.0,0.01789356]
[1773214609049,0.09792428,69642.0,69615.0,0.01789356]
[1773214609271,0.02612833,69641.0,69615.0,0.01789356]
[1773214609716,0.07179595,69642.0,69615.0,0.01789356]
[1773214609717,0.02856079,69642.0,69615.0,0.01789356]
[1773214610289,0.02944349,69640.0,69616.0,0.07182256]
[1773214612251,0.02939767,69638.0,69615.0,0.07182256]
[1773214612931,0.02939767,69638.0,69616.0,0.00216]
[1773214613119,0.02939767,69638.0,69616.0,0.001]
[1773214613307,0.02939767,69638.0,69617.0,0.00116]
[1773214614341,0.02939767,69638.0,69578.0,0.01090672]
[1773214614342,0.07180091,69637.0,69618.0,0.00116]
[1773214614540,0.07180091,69637.0,69602.0,0.07183701]
[1773214614541,0.0293494,69636.0,69619.0,0.00116]
[1773214614884,0.0293494,69636.0,69620.0,0.00116]
[1773214615085,0.0293494,69636.0,69621.0,0.00116]
[1773214616572,0.10115186,69636.0,69622.0,0.07181637]
[1773214617530,0.07180246,69636.0,69622.0,0.07181637]
[1773214617738,0.02923162,69633.0,69622.0,0.07181637]
[1773214618164,0.029115,69632.0,69622.0,0.07181637]
[1773214619490,0.029115,69632.0,69623.0,0.00116]
[1773214619693,0.14180521,69631.0,69622.0,0.07181637]
[1773214619894,0.14180521,69630.0,69623.0,0.00116]
[1773214620310,0.14180521,69629.0,69623.0,0.00116]
[1773214620536,0.14180521,69628.0,69623.0,0.00116]
[1773214620741,0.14180521,69627.0,69616.0,0.07182242]
[1773214620873,0.02899952,69625.0,69618.0,0.07181981]
[1773214621072,0.02899952,69623.0,69619.0,0.00116]
[1773214621292,0.02899952,69623.0,69613.0,0.07202465]
[1773214621293,0.14180521,69622.0,69620.0,0.00116]
[1773214621576,0.02892305,69620.0,69618.0,0.00116]
[1773214621779,0.14165225,69619.0,69618.0,0.00116]
[1773214622828,0.14265225,69619.0,69613.0,0.0002]
[1773214623125,0.14265225,69619.0,69613.0,0.0720256]
[1773214623126,0.02882007,69618.0,69613.0,0.0720256]
[1773214624801,0.02882007,69618.0,69613.0,0.03544772]
[1773214625869,0.02808058,69622.0,69613.0,0.02128257]
[1773214626090,0.21316685,69631.0,69614.0,0.02689059]
[1773214626091,0.17049708,69631.0,69614.0,0.02689059]
[1773214626327,0.07180215,69636.0,69614.0,0.02689059]
[1773214626570,0.17071709,69638.0,69614.0,0.02689059]
[1773214626768,0.00022001,69638.0,69621.0,0.02994199]
[1773214627058,0.07201991,69638.0,69623.0,0.02994199]
[1773214627177,0.07201991,69638.0,69625.0,0.02994199]
[1773214627377,0.07201991,69638.0,69627.0,0.02994199]
[1773214627596,0.07201991,69638.0,69628.0,0.07297019]
[1773214627793,0.07201992,69638.0,69628.0,0.10291218]
[1773214628510,0.07201992,69638.0,69628.0,0.07297019]
[1773214628718,0.07201992,69638.0,69628.0,0.10291218]
[1773214629720,0.07201992,69638.0,69628.0,0.07297019]
[1773214630115,0.07201992,69638.0,69628.0,0.10291218]
[1773214630314,0.00022001,69638.0,69628.0,0.10291218]
[1773214630956,0.00022001,69638.0,69628.0,0.07297019]
[1773214631110,0.00022001,69638.0,69629.0,0.02994199]
[1773214631747,0.00022001,69638.0,69630.0,0.07180812]
[1773214632716,0.07201993,69638.0,69629.0,0.02994199]
[1773214632915,0.07201993,69638.0,69628.0,0.07297014]
[1773214633831,0.14187716,69637.0,69628.0,0.07297014]
[1773214634032,0.00022001,69643.0,69628.0,0.07297014]
[1773214634033,0.00022001,69643.0,69629.0,0.02994199]
[1773214635180,0.07179575,69642.0,69621.0,0.07181741]
[1773214635384,0.07179575,69642.0,69622.0,0.03110199]
[1773214635785,0.07179575,69642.0,69623.0,0.07181534]
[1773214635984,0.07179575,69642.0,69624.0,0.02994199]
[1773214636776,0.07201561,69643.0,69624.0,0.02994199]
[1773214637368,0.00022001,69643.0,69624.0,0.02994199]
[1773214637900,0.00022001,69643.0,69626.0,0.02994199]
[1773214638474,0.00022001,69643.0,69625.0,0.07181328]
[1773214638475,0.00022001,69646.0,69631.0,0.04733945]
[1773214638806,0.00022001,69646.0,69632.0,0.03110199]
[1773214639794,0.04950467,69642.0,69633.0,0.07180503]
[1773214640382,0.07179163,69647.0,69633.0,0.07180503]
[1773214640383,0.17049708,69669.0,69633.0,0.07180503]
[1773214640601,0.28515911,69675.0,69633.0,0.07180503]
[1773214640602,0.04950467,69660.0,69635.0,0.02994199]
[1773214640767,0.04950467,69650.0,69635.0,0.02994199]
[1773214640973,0.04950467,69650.0,69636.0,0.00116]
[1773214641753,0.04950467,69650.0,69637.0,0.00116]
[1773214642075,0.07178853,69649.0,69638.0,0.00116]
[1773214642509,0.07178853,69649.0,69634.0,0.02994199]
[1773214642710,0.07178853,69649.0,69638.0,0.03110199]
[1773214642949,0.07178736,69651.0,69638.0,0.03110199]
[1773214643254,0.04950467,69650.0,69638.0,0.03110199]
[1773214643615,0.04950467,69650.0,69638.0,0.00116]
[1773214643814,0.00022001,69649.0,69639.0,0.00116]
[1773214644041,0.07178957,69648.0,69640.0,0.07179781]
[1773214644827,0.07178957,69648.0,69640.0,0.07162958]
[1773214646238,0.07200958,69649.0,69640.0,0.07162958]
[1773214648431,0.00022001,69649.0,69640.0,0.07146137]
[1773214649183,0.0720086,69649.0,69640.0,0.07146137]
[1773214649388,0.00022001,69649.0,69640.0,0.07146137]
[1773214649731,0.00022001,69649.0,69640.0,0.10140336]
[1773214650987,0.07200862,69649.0,69640.0,0.07146137]
[1773214651672,0.07200862,69649.0,69640.0,0.07129316]
[1773214654609,0.00022001,69649.0,69640.0,0.10123515]
[1773214656564,0.00022001,69649.0,69640.0,0.07129316]
[1773214657285,0.07200942,69649.0,69639.0,0.07295781]
[1773214658239,0.07200942,69649.0,69630.0,0.07180809]
[1773214658467,0.4950467,69640.0,69626.0,0.0002]
[1773214658606,0.04950467,69636.0,69627.0,0.00116]
[1773214658805,0.04950467,69636.0,69620.0,0.00562]
[1773214658806,0.04950467,69636.0,69612.0,0.00116]
[1773214658994,0.04950467,69636.0,69600.0,0.00023]
[1773214658995,0.14322677,69639.0,69609.0,1e-08]
[1773214658996,0.02430049,69621.0,69609.0,1e-08]
[1773214659195,0.02430049,69621.0,69600.0,0.00023]
[1773214659196,0.04950467,69619.0,69600.0,0.00023]
[1773214659396,0.00116,69620.0,69597.0,0.0002302]
[1773214659397,0.04950467,69610.0,69597.0,0.0002302]
[1773214659706,0.14988502,69610.0,69595.0,0.00116]
[1773214660292,0.07182979,69609.0,69595.0,0.00116]
[1773214660491,0.07182979,69609.0,69592.0,0.07746707]
[1773214660492,0.07182979,69609.0,69592.0,0.00678]
[1773214660926,0.07182979,69609.0,69592.0,0.07862644]
[1773214661561,0.07282979,69609.0,69593.0,0.0282073]
[1773214662264,0.07282979,69609.0,69592.0,0.07862644]
[1773214663318,0.07182979,69609.0,69592.0,0.07862644]
[1773214663655,0.00116,69608.0,69592.0,0.07862644]
[1773214663854,0.07282979,69609.0,69592.0,0.07862644]
[1773214664023,0.07182999,69609.0,69593.0,0.0282073]
[1773214664218,0.07181947,69619.0,69593.0,0.0282073]
[1773214664446,0.07181947,69619.0,69595.0,0.0282073]
[1773214664447,0.00116,69618.0,69595.0,0.0282073]
[1773214665034,0.00116,69620.0,69595.0,0.0282073]
[1773214665234,0.09727823,69621.0,69595.0,0.0282073]
[1773214665439,0.07297774,69621.0,69611.0,0.00071828]
[1773214665637,0.07297844,69620.0,69611.0,0.00071828]
[1773214666201,0.00116,69620.0,69611.0,0.00071828]
[1773214666353,0.07181463,69624.0,69611.0,0.07254514]
[1773214666569,0.001,69621.0,69611.0,0.07254514]
[1773214666758,0.07204342,69625.0,69611.0,0.07254514]
[1773214666963,0.00023,69625.0,69612.0,0.0282073]
[1773214667397,0.00023,69625.0,69611.0,0.07254514]
[1773214667398,0.0002302,69629.0,69613.0,0.00116]
[1773214667599,0.0002302,69629.0,69614.0,0.0282073]
[1773214668105,0.0002302,69629.0,69615.0,0.00116]
[1773214668304,0.0002302,69629.0,69616.0,0.0282073]
[1773214668519,0.0002302,69629.0,69617.0,0.07182153]
[1773214669322,0.0002302,69629.0,69615.0,0.07298153]
[1773214669323,0.07203954,69629.0,69615.0,0.07298153]
[1773214669996,0.07203954,69629.0,69616.0,0.0282073]
[1773214670945,0.07303954,69629.0,69617.0,0.07182153]
[1773214671367,0.07203954,69629.0,69617.0,0.07182153]
[1773214671550,0.0002302,69629.0,69617.0,0.10002883]
[1773214672046,0.0012302,69629.0,69618.0,0.0282073]
[1773214672227,0.07203989,69629.0,69618.0,0.02803909]
[1773214672435,0.07203989,69629.0,69615.0,0.07298153]
[1773214672436,0.07203989,69629.0,69612.0,0.07182598]
[1773214672763,0.07203989,69629.0,69611.0,0.07254527]
[1773214672764,0.14859498,69622.0,69611.0,0.00071828]
[1773214673065,0.07181741,69621.0,69610.0,0.00116]
[1773214673266,0.07181741,69621.0,69605.0,0.00116]
[1773214673267,0.14859498,69620.0,69605.0,0.00116]
[1773214673444,0.14859498,69620.0,69602.0,0.07183671]
[1773214673834,0.14859498,69620.0,69603.0,0.00116]
[1773214674169,0.0312214,69619.0,69603.0,0.00116]
[1773214674374,0.0312214,69619.0,69604.0,0.00116]
[1773214674755,0.0312214,69619.0,69602.0,0.07183671]
[1773214675058,0.0312214,69617.0,69603.0,0.00116]
[1773214675403,0.0312214,69617.0,69602.0,0.07183671]
[1773214675562,0.0312214,69617.0,69603.0,0.00116]
[1773214675760,0.0312214,69617.0,69615.0,0.0002]
[1773214675967,0.0312214,69617.0,69605.0,0.00116]
[1773214676391,0.0312214,69617.0,69608.0,0.0002]
[1773214677297,0.0312214,69616.0,69608.0,0.0002]
[1773214679434,0.0718236,69615.0,69608.0,0.0002]
[1773214679590,0.0312214,69614.0,69608.0,0.0002]
[1773214679785,0.0312214,69614.0,69604.0,0.07183422]
[1773214679786,0.0312214,69614.0,69604.0,0.07299422]
[1773214679988,0.0312214,69614.0,69604.0,0.07183422]
[1773214680172,0.0312214,69614.0,69604.0,0.07183391]
[1773214682045,0.0312214,69622.0,69604.0,0.07183391]
[1773214682219,0.0312214,69619.0,69604.0,0.07183391]
[1773214683503,0.0312214,69617.0,69604.0,0.07183391]
[1773214685038,0.07181197,69627.0,69604.0,0.07203391]
[1773214685246,0.0323814,69626.0,69604.0,0.07203391]
[1773214685441,0.14859498,69620.0,69604.0,0.07203391]
[1773214685644,0.0312214,69619.0,69605.0,0.00116]
[1773214686057,0.0312214,69619.0,69606.0,0.00116]
[1773214686218,0.0312214,69619.0,69606.0,0.00099179]
[1773214686426,0.07181328,69625.0,69606.0,0.00099179]
[1773214686427,0.0312214,69617.0,69606.0,0.00099179]
[1773214687920,0.0312214,69615.0,69601.0,0.0002]
[1773214688126,0.0312214,69615.0,69582.0,0.0025458]
[1773214688127,0.07182256,69616.0,69582.0,0.0025458]
[1773214688128,0.0312214,69610.0,69582.0,0.0025458]
[1773214688326,0.29718996,69611.0,69564.0,0.00562]
[1773214688327,0.0312214,69592.0,69575.0,0.07221448]
[1773214688525,0.04275874,69593.0,69565.0,0.07303446]
[1773214688526,0.0312214,69590.0,69565.0,0.07303446]
[1773214689047,0.00116,69591.0,69564.0,0.00562]
[1773214689048,0.14298153,69591.0,69564.0,0.00562]
[1773214689236,0.14298153,69591.0,69553.0,0.07221528]
[1773214689237,0.04275874,69593.0,69553.0,0.0003284]
[1773214689238,0.0312214,69573.0,69553.0,0.0003284]
[1773214689434,0.00116,69572.0,69553.0,0.07221542]
[1773214689638,0.14859498,69580.0,69553.0,0.0003284]
[1773214689639,0.0323814,69571.0,69553.0,0.0003284]
[1773214689844,0.0312214,69568.0,69553.0,0.0003284]
[1773214689996,0.0312214,69568.0,69540.0,0.04407923]
[1773214689997,0.0312214,69562.0,69540.0,0.07190041]
[1773214690621,0.0312214,69562.0,69538.0,0.07329396]
[1773214690622,0.0312214,69560.0,69539.0,0.07238127]
[1773214690794,0.0312214,69560.0,69539.0,0.07238205]
[1773214691191,0.14859498,69560.0,69539.0,0.00048]
[1773214691391,0.0312214,69559.0,69539.0,0.07238136]
[1773214691628,0.0312214,69559.0,69539.0,0.00048]
[1773214692007,0.0312214,69559.0,69512.0,0.13792]
[1773214692008,0.0312214,69549.0,69526.0,0.07191458]
[1773214692207,0.0269719,69547.0,69526.0,0.07191458]
[1773214692417,0.07188245,69558.0,69526.0,0.07191458]
[1773214692418,0.0269719,69545.0,69526.0,0.07191458]
[1773214692611,0.0269719,69543.0,69526.0,0.07191458]
[1773214693628,0.0269719,69539.0,69526.0,0.07191458]
[1773214694032,0.07188245,69559.0,69526.0,0.07191458]
[1773214694033,0.0269731,69546.0,69526.0,0.07191458]
[1773214694230,0.0269731,69544.0,69526.0,0.07191458]
[1773214694431,0.0281331,69543.0,69526.0,0.07191458]
[1773214695103,0.00116,69546.0,69526.0,0.07191458]
[1773214695301,0.0269731,69555.0,69526.0,0.07191458]
[1773214695504,0.0005029,69575.0,69540.0,0.14859498]
[1773214695505,0.04072353,69569.0,69540.0,0.14859498]
[1773214695704,0.00678,69564.0,69542.0,0.02251126]
[1773214696021,0.00562,69564.0,69546.0,0.02251126]
[1773214696235,0.01094842,69566.0,69546.0,0.02251126]
[1773214696701,0.07185827,69582.0,69545.0,0.07189589]
[1773214696702,0.01177954,69585.0,69550.0,0.14859498]
[1773214696840,0.01177954,69585.0,69551.0,0.01756064]
[1773214696841,0.02552319,69584.0,69551.0,0.01756064]
[1773214697044,0.02436319,69582.0,69551.0,0.01756064]
[1773214697876,0.08363503,69585.0,69551.0,0.01756064]
[1773214697877,0.02552319,69581.0,69551.0,0.01756064]
[1773214698189,0.11460572,69593.0,69561.0,0.01632231]
[1773214698190,0.02436319,69588.0,69561.0,0.01632231]
[1773214698337,0.00116,69587.0,69563.0,0.00766442]
[1773214698536,0.02552319,69587.0,69563.0,0.00766442]
[1773214698778,0.02552319,69587.0,69562.0,0.00116]
[1773214698982,0.02436319,69579.0,69562.0,0.00116]
[1773214699185,0.02436319,69579.0,69551.0,0.07188865]
[1773214699186,0.02436319,69571.0,69551.0,0.07188969]
[1773214699388,0.29718996,69580.0,69552.0,0.00116]
[1773214699389,0.00116,69570.0,69552.0,0.00116]
[1773214699565,0.02436319,69570.0,69552.0,0.00116]
[1773214699763,0.02552319,69570.0,69552.0,0.00116]
[1773214699983,0.02436319,69570.0,69553.0,0.07188762]
[1773214700553,0.02364509,69570.0,69553.0,0.07188762]
[1773214700953,0.02364509,69570.0,69562.0,0.001]
[1773214701161,0.02364509,69570.0,69553.0,0.07188762]
[1773214701162,0.02319205,69569.0,69553.0,0.07188762]
[1773214701401,0.02319205,69568.0,69553.0,0.07188762]
[1773214701626,0.02319205,69568.0,69550.0,0.00023]
[1773214701627,0.02319205,69568.0,69550.0,0.07211969]
[1773214702119,0.02319205,69567.0,69550.0,0.07211969]
[1773214702287,0.02435205,69566.0,69550.0,0.07211969]
[1773214702551,0.02435205,69566.0,69562.0,0.0002]
[1773214702882,0.00116,69569.0,69562.0,0.0002]
[1773214703076,0.02435205,69570.0,69562.0,0.0002]
[1773214703229,0.02435205,69570.0,69562.0,3.183e-05]
[1773214703432,0.02319205,69570.0,69562.0,3.183e-05]
[1773214703832,0.00116,69576.0,69562.0,3.183e-05]
[1773214704033,0.07185546,69585.0,69562.0,3.183e-05]
[1773214704034,0.01086243,69588.0,69564.0,0.07187625]
[1773214704383,0.01086243,69588.0,69565.0,0.02419504]
[1773214704934,0.01086243,69588.0,69565.0,0.00116]
[1773214704935,0.02319205,69586.0,69565.0,0.00116]
[1773214705660,0.00138001,69587.0,69566.0,0.02303504]
[1773214706025,0.07323291,69587.0,69566.0,0.02303504]
[1773214706211,0.07323291,69587.0,69567.0,0.07187315]
[1773214706416,0.00022001,69587.0,69568.0,0.02303504]
[1773214706865,0.00022001,69587.0,69567.0,0.07187315]
[1773214706866,0.02319205,69586.0,69567.0,0.07187315]
[1773214707270,0.02319205,69586.0,69568.0,0.02303504]
[1773214707505,0.00022001,69587.0,69568.0,0.02303504]
[1773214708133,0.00022001,69587.0,69569.0,0.07187109]
[1773214708567,0.00022001,69587.0,69569.0,0.09490613]
[1773214708834,0.00022001,69587.0,69570.0,0.02303504]
[1773214709053,0.00022001,69587.0,69571.0,0.04264847]
[1773214709251,0.07207321,69587.0,69569.0,0.07187109]
[1773214709455,0.01086243,69588.0,69569.0,0.07187109]
[1773214709661,0.01086243,69588.0,69565.0,0.07303109]
[1773214709662,0.02319205,69579.0,69563.0,0.07187729]
[1773214709832,0.02319205,69577.0,69563.0,0.07187729]
[1773214710440,0.02319205,69576.0,69569.0,0.001]
[1773214710576,0.07186167,69579.0,69569.0,0.001]
[1773214710780,0.07186167,69579.0,69563.0,0.07187729]
[1773214711520,0.07286167,69579.0,69563.0,0.07187729]
[1773214711818,0.07386167,69579.0,69563.0,0.07187729]
[1773214712112,0.07185602,69584.0,69564.0,0.02303504]
[1773214712315,0.07185479,69585.0,69565.0,0.07187522]
[1773214712517,0.02319205,69584.0,69565.0,0.07187522]
[1773214712878,0.02435205,69583.0,69565.0,0.07187522]
[1773214713081,0.07207337,69587.0,69566.0,0.02303504]
[1773214713303,0.02319205,69586.0,69565.0,0.07187522]
[1773214714328,0.0950466,69586.0,69564.0,0.07187522]
[1773214714527,0.02319205,69585.0,69565.0,0.02303504]
[1773214714730,0.02319205,69585.0,69565.0,0.02403504]
[1773214715317,0.02319205,69585.0,69565.0,0.02303504]
[1773214716668,0.02034448,69583.0,69566.0,0.07187419]
[1773214716841,0.02034448,69583.0,69567.0,0.00116]
[1773214718013,0.02034448,69583.0,69567.0,0.02164989]
[1773214718577,0.02034448,69583.0,69564.0,0.07187522]
[1773214718578,0.07185766,69582.0,69564.0,0.07303551]
[1773214718778,0.02034448,69581.0,69564.0,0.07303551]
[1773214719377,0.00116,69580.0,69564.0,0.07303551]
[1773214719692,0.02034448,69579.0,69564.0,0.07303551]
[1773214720264,0.02034448,69579.0,69565.0,0.0002]
[1773214720472,0.02034448,69579.0,69556.0,0.07188393]
[1773214720473,0.00023,69575.0,69558.0,0.0002]
[1773214720694,0.00023,69575.0,69546.0,0.00116]
[1773214720695,0.02034448,69568.0,69546.0,0.00116]
[1773214720871,0.07187109,69569.0,69539.0,0.09239198]
[1773214720872,0.02034448,69566.0,69551.0,0.0002]
[1773214722220,0.09221557,69569.0,69551.0,0.0002]
[1773214722423,0.07187109,69569.0,69551.0,0.0002]
[1773214722595,0.07187109,69569.0,69553.0,0.07188762]
[1773214723216,0.09221557,69570.0,69554.0,0.02048989]
[1773214723217,0.02034448,69570.0,69554.0,0.02048989]
[1773214723554,0.00116,69574.0,69554.0,0.02048989]
[1773214723555,0.07302598,69574.0,69554.0,0.02048989]
[1773214724111,0.07186598,69574.0,69555.0,0.00112]
[1773214724309,0.02034448,69573.0,69555.0,0.02160989]
[1773214724913,0.07186799,69572.0,69556.0,0.07188452]
[1773214725336,0.02034448,69571.0,69556.0,0.07188452]
[1773214727284,0.02034448,69570.0,69556.0,0.07188452]
[1773214728340,0.02034448,69570.0,69556.0,0.07208452]
[1773214728590,0.07186598,69574.0,69557.0,0.02048989]
[1773214728591,0.07302695,69573.0,69557.0,0.02048989]
[1773214728897,0.07302695,69573.0,69558.0,0.07188245]
[1773214729396,0.07186598,69574.0,69559.0,0.02048989]
[1773214730304,0.07186598,69574.0,69555.0,0.07300452]
[1773214730305,0.14859498,69570.0,69537.0,0.07190416]
[1773214730482,0.02099016,69564.0,69538.0,0.00116]
[1773214730678,0.11346921,69565.0,69538.0,0.00116]
[1773214730679,0.02099016,69562.0,69538.0,0.00116]
[1773214731085,0.02099016,69560.0,69539.0,0.07190209]
[1773214731489,0.02099016,69560.0,69539.0,0.07306209]
[1773214732253,0.02099016,69560.0,69537.0,0.07190416]
[1773214732254,0.14890504,69560.0,69540.0,0.00116]
[1773214732457,0.14890504,69560.0,69530.0,0.0004678]
[1773214732458,0.02099016,69549.0,69530.0,0.0004678]
[1773214732655,0.02099016,69547.0,69530.0,0.0004678]
[1773214732868,0.02099016,69547.0,69530.0,0.07237876]
[1773214733085,0.02099016,69545.0,69530.0,0.07237876]
[1773214733273,0.02099016,69545.0,69530.0,0.0004678]
[1773214733476,0.02099016,69545.0,69530.0,0.07237884]
[1773214733677,0.02099016,69545.0,69530.0,0.0004678]
[1773214734109,0.02099016,69545.0,69530.0,0.07237908]
[1773214734334,0.02099016,69543.0,69530.0,0.07237908]
[1773214734525,0.00116,69542.0,69530.0,0.07237908]
[1773214734904,0.07189486,69546.0,69531.0,0.01981991]
[1773214735081,0.07189486,69547.0,69532.0,0.07190933]
[1773214735608,0.07189486,69547.0,69533.0,0.00116]
[1773214735810,0.001,69545.0,69533.0,0.00116]
[1773214736589,0.07188969,69551.0,69533.0,0.00116]
[1773214736792,0.07188969,69551.0,69533.0,0.02097991]
[1773214737197,0.07188969,69551.0,69534.0,0.07190726]
[1773214737393,0.07188969,69551.0,69535.0,0.01981991]
[1773214738122,0.07188969,69552.0,69535.0,0.01981991]
[1773214739146,0.00562,69564.0,69534.0,0.07190726]
[1773214739147,0.02099016,69563.0,69541.0,0.06378382]
[1773214739356,0.02099016,69561.0,69542.0,0.07305899]
[1773214739499,0.02099016,69561.0,69543.0,0.00116]
[1773214739500,0.02215016,69561.0,69543.0,0.00116]
[1773214740104,0.02215016,69561.0,69544.0,0.00116]
[1773214740571,0.02215016,69561.0,69539.0,0.07189899]
[1773214740572,0.02215016,69561.0,69531.0,0.07191037]
[1773214740767,0.02099016,69559.0,69532.0,0.00116]
[1773214740915,0.02099016,69559.0,69533.0,0.00116]
[1773214741372,0.02099016,69558.0,69534.0,0.07190726]
[1773214741566,0.02099016,69558.0,69534.0,0.07306726]
[1773214742072,0.2130329,69559.0,69535.0,0.00116]
[1773214742073,0.07188142,69559.0,69535.0,0.00116]
[1773214742272,0.07303923,69562.0,69541.0,0.04396391]
[1773214742469,0.07303923,69562.0,69542.0,0.01981991]
[1773214742680,0.03678211,69572.0,69542.0,0.01981991]
[1773214742681,0.07186592,69574.0,69542.0,0.02097991]
[1773214742995,0.07186967,69571.0,69542.0,0.02097991]
[1773214743151,0.001,69558.0,69542.0,0.02097991]
[1773214743469,0.07187534,69565.0,69544.0,0.01981991]
[1773214745484,0.0718748,69566.0,69546.0,0.01981991]
[1773214745657,0.02099016,69572.0,69551.0,0.01981991]
[1773214745658,0.09285815,69572.0,69551.0,0.01981991]
[1773214745856,0.00116,69571.0,69553.0,0.01981991]
[1773214746065,0.00116,69571.0,69554.0,0.02097991]